bitfinex-derivatives/quotes_SOLF0:USTF0_20251211
["timestamp","ask_amount","ask_price","bid_price","bid_amount"]
[1765483511100,0.04957067,134.01,134.0,3.1]
[1765483511798,121.86699265,134.07,134.0,3.1]
[1765483511998,121.86699265,134.07,134.03,3.1]
[1765483512503,128.57939265,134.07,134.03,3.1]
[1765483512809,4.86699265,134.05,134.04,0.05044928]
[1765483513110,4.86699265,134.05,134.03,0.05280288]
[1765483513701,11.58049265,134.05,134.03,0.05280288]
[1765483513906,128.58049265,134.05,134.03,0.05280288]
[1765483514207,121.86699265,134.05,134.0,3.1]
[1765483514408,4.86699265,134.03,134.0,3.1]
[1765483514608,68.30699265,134.03,133.97,3.1]
[1765483514810,68.30699265,134.03,133.99,1.84720929]
[1765483515105,68.30699265,134.03,133.99,4.94720929]
[1765483515408,68.30699265,134.03,134.0,0.05289014]
[1765483515409,0.04746816,134.02,134.0,0.05289014]
[1765483516408,6.76236816,134.02,134.0,0.05289014]
[1765483516707,0.04746816,134.02,134.0,0.05289014]
[1765483517714,4.86699265,134.01,134.0,0.05289014]
[1765483520712,6.76256816,134.02,134.0,0.05289014]
[1765483520907,11.62956081,134.02,134.0,0.05289014]
[1765483521112,0.04746816,134.02,134.0,3.12289014]
[1765483521905,0.04746816,134.02,134.0,0.05289014]
[1765483522316,0.04746816,134.02,134.0,3.12289014]
[1765483522923,0.04746816,134.02,134.01,4.91711145]
[1765483523214,63.46,134.04,134.02,3.07]
[1765483523412,4.86699265,134.1,134.04,3.07]
[1765483523601,63.46,134.1,134.05,4.91764828]
[1765483523804,63.46,134.1,134.05,3.07]
[1765483523805,4.86699265,134.09,134.05,3.07]
[1765483524003,63.46,134.1,134.05,3.07]
[1765483524211,0.04864242,134.09,134.07,3.07]
[1765483524517,0.04864242,134.09,134.08,4.9171193]
[1765483524711,0.04864242,134.09,134.08,3.07]
[1765483525919,0.04864242,134.09,134.07,3.07]
[1765483526520,0.04864242,134.09,134.08,4.91693986]
[1765483526718,0.04864242,134.09,134.08,3.07]
[1765483528215,0.04864242,134.09,134.06,0.0497918]
[1765483528418,4.91563507,134.09,134.07,4.9169719]
[1765483528614,4.91563507,134.09,134.06,0.0497918]
[1765483529014,11.62703507,134.09,134.06,0.0497918]
[1765483530419,4.91563507,134.09,134.06,3.1197918]
[1765483531126,0.04864242,134.09,134.06,0.0497918]
[1765483531320,4.91563507,134.09,134.06,3.1197918]
[1765483531521,0.04864242,134.09,134.06,3.1197918]
[1765483532019,0.04864242,134.09,134.08,3.07]
[1765483533415,0.04864242,134.09,134.07,9.7823]
[1765483533617,0.04864242,134.09,134.08,3.07]
[1765483535721,4.91563507,134.09,134.06,0.0497918]
[1765483536314,4.91563507,134.09,134.06,3.1197918]
[1765483536512,0.04864242,134.09,134.06,3.1197918]
[1765483536718,0.04864242,134.09,134.08,3.07]
[1765483537920,0.04864242,134.09,134.06,0.0497918]
[1765483538233,0.04864242,134.09,134.07,3.07]
[1765483538721,3.11537681,134.08,134.07,3.07]
[1765483540123,117.0,134.13,134.07,3.07]
[1765483540314,3.11537681,134.12,134.1,3.07]
[1765483540519,3.11537681,134.12,134.11,3.07]
[1765483542122,3.11537681,134.12,134.1,3.12181761]
[1765483543324,3.11537681,134.12,134.11,4.9166662]
[1765483543524,117.05368982,134.13,134.11,3.07]
[1765483545022,3.11537681,134.12,134.1,0.05181761]
[1765483545729,3.11537681,134.12,134.03,104.4429]
[1765483545730,3.11537681,134.08,134.03,3.07]
[1765483545919,3.11537681,134.08,134.07,1.84652747]
[1765483546118,3.11537681,134.08,134.07,4.91652747]
[1765483546319,3.11537681,134.08,134.07,3.07]
[1765483546623,63.46715698,134.09,134.07,9.7823]
[1765483546827,63.46715698,134.09,134.08,3.07]
[1765483547226,63.46715698,134.09,134.08,9.7818]
[1765483547526,0.04715698,134.09,134.08,9.7818]
[1765483551834,3.16253379,134.09,134.08,6.7118]
[1765483552036,3.16253379,134.09,134.07,6.7123]
[1765483552234,3.11537681,134.08,134.07,9.7723]
[1765483553149,3.11537681,134.08,134.07,3.06]
[1765483557435,0.04715698,134.09,134.08,3.06]
[1765483560252,63.42,134.12,134.11,3.06]
[1765483560950,3.11537681,134.13,134.11,3.06]
[1765483561144,3.11537681,134.14,134.12,9.7698]
[1765483561337,3.17247082,134.14,134.13,3.06]
[1765483561537,3.17247082,134.14,134.12,3.11674145]
[1765483563045,3.17247082,134.14,134.13,9.7693]
[1765483563349,0.05709401,134.14,134.13,9.7693]
[1765483563537,63.42,134.16,134.15,9.7683]
[1765483563735,3.11537681,134.17,134.15,9.7683]
[1765483563938,3.11537681,134.17,134.16,3.06]
[1765483564841,0.04956734,134.18,134.17,9.7673]
[1765483565949,63.42,134.2,134.19,9.7663]
[1765483566440,3.11537681,134.21,134.2,3.06]
[1765483567235,3.11537681,134.21,134.19,9.81463891]
[1765483567439,3.11537681,134.21,134.2,3.06]
[1765483567644,3.11537681,134.25,134.22,3.06]
[1765483567846,3.11537681,134.25,134.23,4.90744929]
[1765483568047,117.0,134.28,134.23,3.06]
[1765483568247,3.11537681,134.26,134.23,3.06]
[1765483568448,3.11537681,134.26,134.24,1.84567114]
[1765483568753,0.04823843,134.26,134.24,4.95790271]
[1765483568954,0.04823843,134.26,134.24,3.11223157]
[1765483572548,0.04823843,134.26,134.25,4.89555676]
[1765483572857,0.04823843,134.26,134.25,3.06]
[1765483573156,63.4,134.29,134.25,3.06]
[1765483573353,63.4,134.29,134.27,3.06]
[1765483574146,63.44910702,134.29,134.27,3.06]
[1765483574654,63.44910702,134.29,134.25,3.21]
[1765483574846,63.44910702,134.29,134.26,5.04307951]
[1765483575058,63.44910702,134.29,134.24,3.26223157]
[1765483575256,63.44910702,134.29,134.25,5.04305331]
[1765483575440,63.44910702,134.29,134.25,3.21]
[1765483576857,63.44910702,134.29,134.26,5.0408187]
[1765483577052,63.44910702,134.29,134.26,3.21]
[1765483577760,63.44910702,134.29,134.24,3.26223157]
[1765483577962,70.15070702,134.29,134.25,1.83042995]
[1765483578163,70.15070702,134.29,134.24,3.26223157]
[1765483579058,63.44910702,134.29,134.24,3.26223157]
[1765483579350,117.0,134.28,134.24,0.05223157]
[1765483579653,7.39707911,134.27,134.24,0.05223157]
[1765483581260,117.0,134.26,134.18,3.14]
[1765483581459,7.39707911,134.24,134.19,4.9711407]
[1765483581657,70.75707911,134.24,134.19,3.14]
[1765483582055,70.75707911,134.24,134.17,104.3363]
[1765483582252,0.05422912,134.22,134.19,3.19350177]
[1765483582649,7.39707911,134.27,134.21,3.14]
[1765483582854,63.36,134.26,134.24,3.14]
[1765483583162,63.36,134.28,134.24,9.8435]
[1765483583353,63.36,134.28,134.24,3.14]
[1765483583750,63.36,134.28,134.21,3.14]
[1765483583951,0.04710947,134.26,134.24,1.82991178]
[1765483584553,0.04710947,134.26,134.23,0.04721448]
[1765483586361,0.04710947,134.26,134.23,3.18721448]
[1765483586559,0.04710947,134.26,134.25,3.14]
[1765483586765,63.36,134.28,134.25,3.14]
[1765483586961,63.36,134.28,134.26,4.96943418]
[1765483587156,63.36,134.28,134.26,3.14]
[1765483591067,63.36,134.28,134.27,3.14]
[1765483591965,63.36,134.28,134.26,3.19262257]
[1765483592271,63.36,134.28,134.26,0.05262257]
[1765483592475,63.36,134.28,134.26,1.88226411]
[1765483592674,63.36,134.28,134.26,0.05262257]
[1765483592879,63.36,134.28,134.26,1.88224392]
[1765483593177,63.36,134.28,134.26,0.05262257]
[1765483594378,131.09767911,134.31,134.26,3.19262257]
[1765483595475,124.39707911,134.31,134.26,0.05262257]
[1765483596368,6.7014,134.29,134.26,0.05262257]
[1765483596772,124.39707911,134.31,134.26,0.05262257]
[1765483597370,6.7009,134.3,134.26,0.05262257]
[1765483598884,117.0,134.29,134.26,0.05262257]
[1765483599083,63.34,134.28,134.26,0.05262257]
[1765483600778,68.19506904,134.28,134.26,0.05262257]
[1765483602980,117.0,134.27,134.26,0.05262257]
[1765483605577,117.0,134.27,134.21,3.14]
[1765483605777,117.0,134.27,134.22,1.84622289]
[1765483606281,117.0,134.27,134.17,104.3347]
[1765483606282,6.7034,134.25,134.18,3.14]
[1765483606484,63.34,134.24,134.21,1.84649248]
[1765483606788,0.04999638,134.23,134.21,1.84649248]
[1765483607886,0.04999638,134.23,134.2,0.05721924]
[1765483608271,12.05407485,134.23,134.2,0.05721924]
[1765483610275,5.29967847,134.22,134.2,0.05721924]
[1765483610478,63.34,134.21,134.2,0.05721924]
[1765483610983,63.34,134.21,134.2,3.35721924]
[1765483611489,5.34967485,134.23,134.21,3.3]
[1765483611687,0.04999638,134.23,134.22,5.15341975]
[1765483611992,0.04999638,134.23,134.22,3.3]
[1765483612888,0.04999638,134.23,134.22,10.0048]
[1765483613086,0.04999638,134.23,134.2,3.35721924]
[1765483613387,0.04999638,134.23,134.22,1.85388451]
[1765483613989,0.04999638,134.23,134.2,3.35721924]
[1765483614190,0.04999638,134.23,134.21,1.85402662]
[1765483620394,0.04999638,134.23,134.22,3.3]
[1765483621096,5.29967847,134.29,134.23,3.3]
[1765483621290,5.29967847,134.32,134.26,3.3]
[1765483621492,63.36,134.32,134.29,3.3]
[1765483622092,5.29967847,134.35,134.3,3.3]
[1765483622293,122.65767739,134.39,134.3,3.3]
[1765483622294,5.29967847,134.38,134.3,3.3]
[1765483622494,63.36,134.37,134.33,3.35241041]
[1765483622907,63.36,134.37,134.35,3.3]
[1765483623711,63.36,134.37,134.33,6.75141041]
[1765483623712,121.0831158,134.36,134.33,0.00241041]
[1765483624012,6.7029,134.26,134.21,3.3]
[1765483624193,6.7029,134.26,134.22,3.3]
[1765483624194,63.36,134.25,134.22,3.3]
[1765483624895,63.4126678,134.25,134.22,3.35705114]
[1765483630207,6.7017,134.29,134.24,3.3]
[1765483630506,63.34,134.28,134.26,3.3]
[1765483631311,63.34,134.28,134.26,3.35479953]
[1765483631992,63.34,134.28,134.26,0.05479953]
[1765483633207,63.34,134.28,134.26,3.35479953]
[1765483633712,63.34,134.28,134.26,0.05479953]
[1765483633902,63.34,134.28,134.24,6.7037]
[1765483633903,64.87245815,134.28,134.2,3.3]
[1765483634102,68.69213662,134.28,134.21,1.85042214]
[1765483634509,18.29703733,134.26,134.21,1.85042214]
[1765483634804,18.29703733,134.26,134.19,6.7059]
[1765483635003,0.05574956,134.24,134.21,0.05087326]
[1765483635407,0.05574956,134.24,134.21,3.35087326]
[1765483635613,0.05574956,134.24,134.21,107.65187326]
[1765483635806,0.05574956,134.24,134.23,3.3]
[1765483638410,0.05574956,134.24,134.22,3.24]
[1765483638610,0.05574956,134.24,134.23,1.85084241]
[1765483638997,0.05574956,134.24,134.23,5.19084241]
[1765483639197,63.34,134.28,134.23,3.34]
[1765483639407,63.34,134.28,134.25,3.34]
[1765483640114,11.59403733,134.26,134.18,3.34]
[1765483640303,11.59403733,134.26,134.21,0.05286483]
[1765483640907,6.704,134.24,134.21,0.05286483]
[1765483641404,11.59403733,134.26,134.21,0.05286483]
[1765483641713,11.59403733,134.26,134.21,3.39286483]
[1765483643306,6.7027,134.27,134.21,10.09796483]
[1765483644611,6.703,134.26,134.21,0.05286483]
[1765483644814,11.59403733,134.26,134.21,0.05286483]
[1765483645920,6.7039,134.24,134.21,0.05286483]
[1765483646217,63.36,134.23,134.21,0.05286483]
[1765483655920,74.95403733,134.23,134.15,3.34]
[1765483656121,74.95403733,134.23,134.17,1.85081959]
[1765483656419,63.36,134.24,134.17,3.34]
[1765483656622,63.36,134.24,134.18,5.19067461]
[1765483657017,0.05286483,134.22,134.2,0.0520481]
[1765483657212,0.05286483,134.22,134.2,3.3920481]
[1765483657725,0.05286483,134.22,134.2,10.0978481]
[1765483658618,0.05286483,134.22,134.21,11.89525516]
[1765483658813,7.39851639,134.29,134.22,3.34]
[1765483659023,7.39851639,134.32,134.25,3.34]
[1765483659214,63.36,134.31,134.28,3.34]
[1765483659817,63.36,134.31,134.28,3.39251748]
[1765483661022,70.0604,134.31,134.28,3.39251748]
[1765483664023,63.36,134.31,134.28,3.39251748]
[1765483669425,63.36,134.31,134.29,3.08]
[1765483674028,63.36,134.31,134.28,3.13251748]
[1765483674223,63.36,134.31,134.28,0.05251748]
[1765483674730,6.7009,134.3,134.28,0.05251748]
[1765483675028,63.36,134.31,134.28,3.13251748]
[1765483676122,70.0603,134.31,134.28,3.13251748]
[1765483676428,70.0603,134.31,134.28,0.05251748]
[1765483676832,6.7013,134.29,134.28,0.05251748]
[1765483679134,77.45901639,134.31,134.28,0.05251748]
[1765483679826,70.75851639,134.31,134.28,0.05251748]
[1765483681933,70.75851639,134.31,134.28,0.00251748]
[1765483682124,197.35981639,134.31,134.21,3.08]
[1765483682325,7.39851639,134.27,134.23,1.84697529]
[1765483682524,63.34,134.26,134.23,1.84697529]
[1765483682726,63.34,134.26,134.22,4.92697529]
[1765483683035,0.0520318,134.25,134.23,1.89575169]
[1765483683224,0.0520318,134.25,134.23,3.1287764]
[1765483683421,0.0520318,134.25,134.24,1.84689049]
[1765483683627,0.0520318,134.25,134.23,3.1287764]
[1765483684436,7.39851639,134.24,134.23,0.0487764]
[1765483687827,0.0520318,134.25,134.17,3.08]
[1765483688046,70.73851639,134.26,134.2,3.08]
[1765483688537,70.73851639,134.26,134.21,1.84717417]
[1765483688732,0.05202834,134.25,134.22,0.04886438]
[1765483688941,0.05202834,134.25,134.22,3.12886438]
[1765483690835,0.05202834,134.25,134.24,4.92684812]
[1765483691041,0.05202834,134.25,134.24,3.08]
[1765483691840,63.34,134.3,134.24,3.08]
[1765483692142,104.192,134.36,134.28,1.84699789]
[1765483692345,3.10754275,134.33,134.29,4.92699789]
[1765483692647,6.699,134.34,134.29,3.08]
[1765483692948,7.44061653,134.33,134.3,0.050755]
[1765483693236,111.65601653,134.33,134.24,3.08]
[1765483693432,7.39135099,134.3,134.25,4.92695298]
[1765483693631,7.39135099,134.3,134.23,3.08]
[1765483693632,70.73135099,134.3,134.23,3.08]
[1765483693843,70.73135099,134.3,134.25,1.84705385]
[1765483694146,0.04831968,134.29,134.26,0.05311742]
[1765483696144,0.04831968,134.29,134.26,3.28311742]
[1765483696832,0.04831968,134.29,134.26,0.05311742]
[1765483697942,63.34,134.33,134.28,5.07823792]
[1765483698141,63.34,134.33,134.27,1.84823792]
[1765483698445,7.39135099,134.31,134.25,3.23]
[1765483698644,7.39135099,134.31,134.27,5.21825035]
[1765483698853,0.04907978,134.3,134.28,3.42176721]
[1765483699046,0.04907978,134.3,134.28,0.05685829]
[1765483700743,0.04907978,134.3,134.28,3.42685829]
[1765483701832,0.04907978,134.3,134.29,3.37]
[1765483705536,63.34,134.33,134.29,3.37]
[1765483705841,70.73135099,134.37,134.31,3.37]
[1765483706047,63.34,134.37,134.34,3.37]
[1765483706241,63.34,134.37,134.35,5.21861362]
[1765483706438,63.34,134.37,134.35,3.37]
[1765483706637,63.34,134.37,134.35,3.42487685]
[1765483707155,63.34,134.37,134.36,3.37]
[1765483707445,77.40605099,134.43,134.36,3.37]
[1765483707652,70.71135099,134.43,134.38,0.04914601]
[1765483707945,7.39135099,134.4,134.38,0.04914601]
[1765483708137,7.39135099,134.4,134.3,3.37]
[1765483708334,7.39135099,134.4,134.33,5.21662926]
[1765483708537,7.39135099,134.4,134.33,3.37]
[1765483709138,0.05176709,134.38,134.35,0.04991318]
[1765483709351,63.37176709,134.38,134.35,0.04991318]
[1765483711450,63.37176709,134.38,134.35,3.41991318]
[1765483711949,63.37176709,134.38,134.36,5.21405088]
[1765483712150,0.05176709,134.38,134.37,3.37]
[1765483712351,104.1145,134.46,134.37,3.37]
[1765483712352,76.01102946,134.47,134.37,3.37]
[1765483712651,70.71135099,134.47,134.4,1.8421942]
[1765483712848,72.00616244,134.47,134.4,1.8421942]
[1765483713149,7.39135099,134.44,134.4,1.8421942]
[1765483713354,7.39135099,134.41,134.35,3.37]
[1765483713541,70.71135099,134.41,134.37,0.05149848]
[1765483713739,70.71135099,134.41,134.38,0.04765476]
[1765483713939,70.71135099,134.41,134.38,0.04732874]
[1765483714141,63.32,134.41,134.38,0.04732874]
[1765483714748,70.0157,134.41,134.38,0.04732874]
[1765483715249,63.32,134.41,134.38,0.04732874]
[1765483715858,14.23058509,134.47,134.38,3.41732874]
[1765483716157,63.3,134.46,134.41,0.05293405]
[1765483716451,7.39135099,134.44,134.41,0.05293405]
[1765483717954,6.6945,134.43,134.41,0.05293405]
[1765483718654,6.6936,134.45,134.41,3.42293405]
[1765483719159,6.694,134.44,134.41,0.05293405]
[1765483719563,167.4189,134.46,134.41,0.05293405]
[1765483719854,6.6945,134.43,134.41,0.05293405]
[1765483720251,63.3,134.42,134.41,0.05293405]
[1765483726959,63.3,134.42,134.41,3.42293405]
[1765483727960,6.6931,134.46,134.41,3.42293405]
[1765483727961,63.28,134.46,134.41,3.42293405]
[1765483728158,63.28,134.46,134.43,3.37]
[1765483730664,63.28,134.5,134.45,3.12]
[1765483730970,63.28,134.5,134.47,3.12]
[1765483731366,69.9713,134.5,134.46,3.1682442]
[1765483731563,63.28,134.5,134.46,3.1682442]
[1765483731966,6.6914,134.49,134.46,3.1682442]
[1765483732258,63.28,134.5,134.46,3.1682442]
[1765483732672,69.971,134.5,134.46,3.1682442]
[1765483733070,6.6922,134.48,134.46,0.0482442]
[1765483734369,104.0968,134.48,134.4,3.12]
[1765483734670,104.1057,134.47,134.41,1.83205201]
[1765483734860,63.26,134.46,134.41,4.95205201]
[1765483735057,63.26,134.46,134.41,3.12]
[1765483735470,0.0482442,134.45,134.42,0.0514433]
[1765483736874,6.7417442,134.45,134.42,0.0514433]
[1765483737863,0.0482442,134.45,134.42,3.1714433]
[1765483739973,0.0482442,134.45,134.44,3.12]
[1765483740370,0.0482442,134.45,134.42,0.0514433]
[1765483740963,0.0482442,134.45,134.42,3.1714433]
[1765483741271,0.0482442,134.45,134.44,4.95535505]
[1765483741471,0.0482442,134.45,134.44,3.12]
[1765483742268,69.9508,134.51,134.44,4.6]
[1765483742467,69.9508,134.51,134.46,3.12]
[1765483743376,69.9508,134.51,134.47,3.17481779]
[1765483744467,63.26,134.51,134.47,3.17481779]
[1765483746176,69.9505,134.51,134.47,3.17481779]
[1765483746366,63.26,134.51,134.47,3.17481779]
[1765483746566,63.26,134.51,134.47,0.05481779]
[1765483747182,63.26,134.51,134.47,3.17481779]
[1765483747777,63.26,134.51,134.47,0.05481779]
[1765483747977,69.9507,134.51,134.47,0.05481779]
[1765483748380,69.9507,134.51,134.47,3.17481779]
[1765483748677,63.26,134.51,134.47,3.17481779]
[1765483749084,63.26,134.51,134.49,3.12]
[1765483749476,63.26,134.51,134.5,3.12]
[1765483750183,63.26,134.51,134.49,6.6913]
[1765483750380,63.26,134.51,134.5,3.12]
[1765483750682,63.24,134.55,134.5,9.8105]
[1765483750882,63.24,134.55,134.51,3.1693414]
[1765483751083,69.9285,134.55,134.51,0.0493414]
[1765483752083,69.9285,134.55,134.51,3.1693414]
[1765483752279,63.24,134.55,134.51,3.1693414]
[1765483752583,10.78982454,134.6,134.53,3.12]
[1765483752779,63.24,134.6,134.55,0.05352911]
[1765483753785,63.24,134.6,134.55,3.17352911]
[1765483755785,63.24,134.6,134.55,9.86182911]
[1765483756182,63.24,134.6,134.56,3.25]
[1765483756384,63.24,134.6,134.57,3.25]
[1765483756579,63.24,134.6,134.56,3.25]
[1765483756878,63.24,134.6,134.55,0.05352911]
[1765483756879,74.80768702,134.6,134.55,0.05352911]
[1765483758085,11.56768702,134.57,134.47,107.3518]
[1765483758289,11.56768702,134.57,134.5,1.83562093]
[1765483758686,137.17382454,134.59,134.44,3.24]
[1765483758687,11.56768702,134.54,134.44,3.24]
[1765483758991,63.22,134.53,134.46,1.83615738]
[1765483759194,0.05352911,134.51,134.48,0.04831492]
[1765483764102,6.74402911,134.51,134.48,0.04831492]
[1765483764703,4.83949596,134.49,134.48,0.04831492]
[1765483764907,6.74402911,134.51,134.48,0.04831492]
[1765483764908,0.05352911,134.51,134.48,3.28831492]
[1765483765107,4.83949596,134.5,134.48,0.04831492]
[1765483768309,108.92679596,134.5,134.42,3.24]
[1765483768509,4.83949596,134.43,134.39,3.24]
[1765483769201,0.05583369,134.42,134.4,3.28846649]
[1765483770305,4.83949596,134.41,134.4,0.04846649]
[1765483770811,0.05583369,134.42,134.4,0.04846649]
[1765483773112,0.05583369,134.42,134.4,3.28846649]
[1765483777911,0.05583369,134.42,134.4,0.04846649]
[1765483778615,6.75083369,134.42,134.4,0.04846649]
[1765483779115,0.05583369,134.42,134.4,0.04846649]
[1765483780412,0.05583369,134.42,134.4,3.28846649]
[1765483780617,0.05583369,134.42,134.4,0.04846649]
[1765483781521,6.75083369,134.42,134.4,3.28846649]
[1765483781723,0.05583369,134.42,134.4,3.28846649]
[1765483782528,0.05583369,134.42,134.4,0.04846649]
[1765483782720,7.43929898,134.42,134.4,0.04846649]
[1765483783423,14.13419898,134.42,134.4,0.04846649]
[1765483785235,63.26,134.41,134.4,0.04846649]
[1765483788734,6.6959,134.4,134.35,3.24]
[1765483788930,6.6959,134.4,134.36,1.83709145]
[1765483789133,6.6959,134.4,134.37,3.22]
[1765483789823,6.750366,134.4,134.37,3.27363247]
[1765483790633,3.10152425,134.38,134.37,3.27363247]
[1765483795939,0.054466,134.4,134.37,3.27363247]
[1765483796350,5.29037634,134.49,134.4,3.22]
[1765483796644,3.10152425,134.5,134.45,1.8351811]
[1765483796838,3.10152425,134.5,134.46,3.22]
[1765483797237,0.04881173,134.49,134.47,3.27675067]
[1765483797836,3.15033598,134.49,134.47,3.27675067]
[1765483798641,0.04881173,134.49,134.47,3.27675067]
[1765483800143,0.04881173,134.49,134.47,0.05675067]
[1765483800347,7.42159981,134.49,134.47,0.05675067]
[1765483800641,7.37278808,134.46,134.36,3.22]
[1765483800841,7.37278808,134.46,134.4,1.83856353]
[1765483801146,7.37278808,134.46,134.39,3.22]
[1765483801344,104.1076,134.47,134.39,3.22]
[1765483801641,7.42483005,134.44,134.41,0.04795399]
[1765483801832,70.68483005,134.44,134.41,0.04795399]
[1765483802034,70.68483005,134.44,134.41,3.26795399]
[1765483802238,63.31204197,134.44,134.41,3.26795399]
[1765483809344,0.05204197,134.44,134.43,3.22]
[1765483809545,6.6917,134.49,134.43,3.22]
[1765483809851,12.66316442,134.5,134.44,1.84626343]
[1765483810551,0.05297427,134.48,134.46,0.04867813]
[1765483812758,7.37278808,134.47,134.46,0.04867813]
[1765483813151,70.63278808,134.47,134.46,0.04867813]
[1765483813349,70.63278808,134.47,134.4,3.22]
[1765483813659,7.37278808,134.44,134.38,3.22]
[1765483813849,7.37278808,134.44,134.39,5.06824428]
[1765483814160,7.37278808,134.44,134.39,3.22]
[1765483814360,0.04828406,134.43,134.4,0.05565054]
[1765483815173,0.04828406,134.43,134.4,3.32565054]
[1765483815551,0.04828406,134.43,134.4,0.05565054]
[1765483820054,0.04828406,134.43,134.4,3.11565054]
[1765483820652,5.29037634,134.49,134.42,3.06]
[1765483820856,6.6912,134.5,134.44,3.06]
[1765483820857,11.98157634,134.5,134.44,3.06]
[1765483821061,5.29037634,134.5,134.44,3.06]
[1765483821450,6.6909,134.5,134.44,3.06]
[1765483821650,0.04897958,134.48,134.46,0.05261333]
[1765483823562,0.04897958,134.48,134.46,3.11261333]
[1765483825964,0.04897958,134.48,134.47,4.90544024]
[1765483826166,0.04897958,134.48,134.47,3.06]
[1765483830159,63.26,134.53,134.47,3.06]
[1765483830360,104.0297,134.57,134.49,3.06]
[1765483830562,7.37278808,134.53,134.46,3.06]
[1765483830768,6.6912,134.5,134.46,3.06]
[1765483831267,0.05196771,134.49,134.47,3.11230721]
[1765483832468,6.74346771,134.49,134.47,0.05230721]
[1765483832863,0.05196771,134.49,134.44,3.06]
[1765483833772,0.05196771,134.49,134.45,0.05165604]
[1765483833970,6.6927,134.47,134.45,0.05165604]
[1765483836065,6.6927,134.47,134.45,3.11165604]
[1765483836971,6.6927,134.47,134.45,0.05165604]
[1765483838674,3.09787237,134.46,134.45,0.05165604]
[1765483839075,3.09787237,134.46,134.45,3.11165604]
[1765483839272,3.09787237,134.46,134.45,0.05165604]
[1765483841161,3.14939368,134.48,134.45,3.11165604]
[1765483841364,3.14939368,134.48,134.46,1.84690498]
[1765483841678,3.14939368,134.48,134.47,3.06]
[1765483842771,0.05152131,134.48,134.47,3.06]
[1765483846362,6.6926,134.47,134.45,3.11165604]
[1765483849777,6.6929,134.46,134.45,0.05165604]
[1765483850678,6.6929,134.46,134.45,3.12165604]
[1765483853584,6.6929,134.46,134.45,0.05165604]
[1765483853781,104.1197,134.45,134.36,3.07]
[1765483853985,4.83922876,134.43,134.39,4.91902815]
[1765483854186,4.83922876,134.43,134.4,3.07]
[1765483854688,6.6955,134.41,134.34,3.07]
[1765483854874,6.6955,134.41,134.39,4.91883205]
[1765483855078,6.74929706,134.41,134.39,3.07]
[1765483856289,0.05379706,134.41,134.39,3.07]
[1765483857493,0.05379706,134.41,134.4,3.07]
[1765483857697,6.6937,134.45,134.4,3.07]
[1765483857998,73.3696051,134.46,134.42,3.07]
[1765483857999,68.07922876,134.46,134.42,3.07]
[1765483858198,69.933,134.46,134.42,3.07]
[1765483858495,63.24,134.46,134.42,3.07]
[1765483858995,0.05045886,134.45,134.44,3.07]
[1765483861497,6.74385886,134.45,134.43,0.05640599]
[1765483862300,4.83922876,134.44,134.43,0.05640599]
[1765483863396,11.53302876,134.44,134.43,0.05640599]
[1765483863799,5.3408352,134.45,134.43,3.12640599]
[1765483864002,0.05045886,134.45,134.43,3.12640599]
[1765483867104,0.05045886,134.45,134.44,4.91975805]
[1765483867303,0.05045886,134.45,134.44,3.07]
[1765483869198,6.6923,134.48,134.44,3.07]
[1765483869508,11.98267634,134.48,134.46,3.07]
[1765483869698,5.29037634,134.49,134.46,3.07]
[1765483870304,5.341518,134.49,134.46,3.11692087]
[1765483870905,12.032918,134.49,134.46,3.11692087]
[1765483871117,5.341518,134.49,134.46,3.11692087]
[1765483871604,0.05114166,134.49,134.46,3.11692087]
[1765483871999,0.05114166,134.49,134.47,1.84959334]
[1765483872306,0.05114166,134.49,134.47,4.91959334]
[1765483872506,0.05114166,134.49,134.47,3.07]
[1765483875110,0.00114166,134.49,134.48,5.20964414]
[1765483875403,0.00114166,134.49,134.48,3.36]
[1765483875606,5.29037634,134.52,134.5,3.36]
[1765483875906,5.29037634,134.53,134.5,3.36]
[1765483876106,6.6882,134.56,134.51,1.84936411]
[1765483876107,5.29037634,134.55,134.51,1.84936411]
[1765483876411,68.07922876,134.56,134.51,5.20936411]